fUST/lending_fUST_20250606
["ID","MTS","AMOUNT","RATE_DAILY","PERIOD"]
[364720256,1749217847197,-500.0,0.00024434,2]
[364720257,1749217847207,-172.41531002,0.00024434,2]
[364720258,1749217847217,-160.0,0.00024439,3]
[364720259,1749217847227,-160.0,0.00024439,5]
[364720260,1749217847236,-382.49554745,0.00024445,2]
[364720261,1749217847246,-800.0,0.00024451,2]
[364720262,1749217847256,-490.0,0.00024461,2]
[364720263,1749217847265,-185.77862573,0.00024461,2]
[364720264,1749217847275,-500.0,0.00024461,2]
[364720265,1749217847285,-800.0,0.00024471,2]
[364720266,1749217847295,-400.0,0.00024484,2]
[364720267,1749217847304,-1024.27577053,0.00024486,11]
[364720268,1749217847314,-490.0,0.00024489,2]
[364720269,1749217847324,-500.0,0.00024489,2]
[364720270,1749217847334,-800.0,0.00024492,2]
[364720271,1749217847349,-6283.98145619,0.00024492,5]
[364720272,1749217847359,-440.0,0.00024499,2]
[364720273,1749217847371,-440.0,0.00024499,2]
[364720274,1749217847380,-1834940.4583343,0.000245,4]
[364720275,1749217847425,-6292.35090533,0.000245,4]
[364720276,1749217847438,-35185.59973384,0.000245,4]
[364720277,1749217847450,-329.94344376,0.000245,4]
[364720278,1749217847462,-4006.75891916,0.000245,4]
[364720279,1749217847473,-431.87455561,0.000245,4]
[364720280,1749217847566,-440.0,0.00019452,2]
[364720281,1749217847577,-440.0,0.00019726,2]
[364720282,1749217847587,-440.0,0.0002,2]
[364720283,1749217847601,-380.0,0.00020273,2]
[364720284,1749217847611,-1000.0,0.000233,2]
[364720285,1749217847621,-1000.0,0.000238,2]
[364720286,1749217847630,-229.52673067,0.00024,3]
[364720287,1749217847640,-229.52673067,0.00024,7]
[364720288,1749217847651,-1000.0,0.000243,2]
[364720289,1749217847660,-10618.5740165,0.00024482,2]
[364720290,1749217847670,-43003.8964131,0.000245,4]
[364720291,1749217847703,-500.0,0.00020664,2]
[364720292,1749217847712,-10.20018879,0.000245,4]
[364720294,1749218163745,317.87126229,0.00018603,2]
[364720296,1749218284789,13534.91654302,0.00018449,2]
[364720297,1749218284817,11365.08345698,0.00018449,2]
[364720298,1749218325304,7653.57034302,0.00018315,2]
[364720299,1749218325328,19018.6538,0.00018315,2]
[364720300,1749218325350,19018.6538,0.00018315,2]
[364720301,1749218325373,19018.6538,0.00018315,2]
[364720302,1749218325395,220.77992748,0.00018315,2]
[364720303,1749218465506,190.72275738,0.00018603,2]
[364720307,1749218523392,207.029318,0.00013699,2]
[364720309,1749218627825,150.0,0.00017958,2]
[364720310,1749218693140,150.0,0.0001796,2]
[364720311,1749218734137,-229.03511887,0.00019077,2]
[364720312,1749218734162,-144.00917608,0.00019168,2]
[364720313,1749218758000,150.0,0.00017974,2]
[364720314,1749218758206,150.0,0.0001883,2]
[364720315,1749218767417,183.40617763,0.00018603,2]
[364720317,1749218802079,-19.26082392,0.00019168,2]
[364720318,1749218802100,-204.0379014,0.00019176,2]
[364720320,1749218824516,150.0,0.00017962,2]
[364720321,1749218824927,150.0,0.00018817,2]
[364720322,1749218833100,-95.9620986,0.00019176,2]
[364720323,1749218833121,-425.91209812,0.00019177,2]
[364720324,1749218833151,-4898.00090651,0.00019177,2]
[364720325,1749218834121,-3187.52625755,0.00019177,2]
[364720326,1749218839130,-222.13,0.00019168,3]
[364720327,1749218839153,-769.47541511,0.00019177,2]
[364720328,1749218892375,150.0,0.00017969,2]
[364720329,1749218892790,150.0,0.00018825,2]
[364720330,1749218894777,467.61822835,0.000189,2]
[364720331,1749218902539,3001.0,0.00024658,120]
[364720332,1749218905393,1196.3343715,0.00018315,2]
[364720334,1749218934518,6100.0749678,0.00018461,2]
[364720335,1749218939629,9252.68805186,0.00018315,2]
[364720336,1749218939652,747.31194814,0.00018315,2]
[364720337,1749218964195,150.0,0.00018246,2]
[364720338,1749218998615,311.74548557,0.000189,2]
[364720368,1749219031826,-168.51050083,0.00019076,2]
[364720369,1749219031837,-150.0,0.00019115,2]
[364720370,1749219031849,-211.42,0.00019168,3]
[364720371,1749219031859,-634.3,0.00019168,3]
[364720372,1749219031869,-500.0,0.00019173,2]
[364720373,1749219031879,-211.69068759,0.00019173,2]
[364720374,1749219031889,-300.0,0.00019175,2]
[364720375,1749219031898,-300.0,0.00019175,2]
[364720376,1749219031908,-1200.0,0.00019175,2]
[364720377,1749219031918,-300.0,0.00019175,2]
[364720378,1749219031930,-50000.0,0.00019176,2]
[364720379,1749219031940,-500.0,0.00019176,2]
[364720380,1749219031949,-500.0,0.00019176,2]
[364720381,1749219031959,-500.0,0.00019176,2]
[364720382,1749219031969,-500.0,0.00019176,2]
[364720383,1749219031978,-500.0,0.00019176,2]
[364720384,1749219031988,-500.0,0.00019176,2]
[364720385,1749219031998,-500.0,0.00019176,2]
[364720386,1749219032008,-500.0,0.00019176,2]
[364720387,1749219032018,-380.87560221,0.00019176,2]
[364720388,1749219032028,-419.94862976,0.00019176,2]
[364720389,1749219032038,-500.0,0.00019176,2]
[364720390,1749219032048,-500.0,0.00019176,2]
[364720391,1749219032058,-500.0,0.00019176,2]
[364720392,1749219032068,-500.0,0.00019176,2]
[364720393,1749219032078,-623.97260795,0.00019176,2]
[364720394,1749219032088,-500.0,0.00019176,2]
[364720395,1749219032097,-499.38169526,0.00019176,2]
[364720396,1749219032107,-500.0,0.00019176,2]
[364720397,1749219032116,-515.50290627,0.00019176,2]
[364720398,1749219032127,-500.0,0.00019176,2]
[364720399,1749219032137,-500.0,0.00019176,2]
[364720400,1749219032289,-500.0,0.00019176,2]
[364720401,1749219032300,-500.0,0.00019176,2]
[364720402,1749219032311,-500.0,0.00019176,2]
[364720403,1749219032321,-500.0,0.00019176,2]
[364720404,1749219032330,-500.0,0.00019176,2]
[364720405,1749219032340,-500.0,0.00019176,2]
[364720406,1749219032350,-500.0,0.00019176,2]
[364720407,1749219032359,-500.0,0.00019176,2]
[364720408,1749219032369,-500.0,0.00019176,2]
[364720409,1749219032379,-500.0,0.00019176,2]
[364720410,1749219032388,-500.0,0.00019176,2]
[364720411,1749219032398,-500.0,0.00019176,2]
[364720412,1749219032408,-500.0,0.00019176,2]
[364720413,1749219032418,-202.20153548,0.00019176,2]
[364720414,1749219032429,-250.0,0.00019176,2]
[364720415,1749219032439,-500.0,0.00019176,2]
[364720416,1749219032448,-500.0,0.00019176,2]
[364720417,1749219032458,-586.1120167,0.00019176,2]
[364720418,1749219032468,-500.0,0.00019176,2]
[364720419,1749219032478,-500.0,0.00019176,2]
[364720420,1749219032488,-500.0,0.00019176,2]
[364720421,1749219032497,-500.0,0.00019176,2]
[364720422,1749219032507,-500.0,0.00019176,2]
[364720423,1749219032517,-500.0,0.00019176,2]
[364720424,1749219032526,-500.0,0.00019176,2]
[364720425,1749219032536,-500.0,0.00019176,2]
[364720426,1749219032546,-500.0,0.00019176,2]
[364720427,1749219032556,-500.0,0.00019176,2]
[364720428,1749219032565,-500.0,0.00019176,2]
[364720429,1749219032575,-500.0,0.00019176,2]
[364720430,1749219032585,-500.0,0.00019176,2]
[364720431,1749219032594,-500.0,0.00019176,2]
[364720432,1749219032604,-500.0,0.00019176,2]
[364720433,1749219032614,-500.0,0.00019176,2]
[364720434,1749219032625,-500.0,0.00019176,2]
[364720435,1749219032635,-500.0,0.00019176,2]
[364720436,1749219032645,-500.0,0.00019176,2]
[364720437,1749219032655,-500.0,0.00019176,2]
[364720438,1749219032664,-500.0,0.00019176,2]
[364720439,1749219032675,-500.0,0.00019176,2]
[364720440,1749219032684,-500.0,0.00019176,2]
[364720441,1749219032694,-500.0,0.00019176,2]
[364720442,1749219032703,-500.0,0.00019176,2]
[364720443,1749219032713,-500.0,0.00019176,2]
[364720444,1749219032723,-500.0,0.00019176,2]
[364720445,1749219032732,-500.0,0.00019176,2]
[364720446,1749219032741,-500.0,0.00019176,2]
[364720447,1749219032751,-500.0,0.00019176,2]
[364720448,1749219032760,-500.0,0.00019176,2]
[364720449,1749219032772,-500.0,0.00019176,2]
[364720450,1749219032782,-500.0,0.00019176,2]
[364720451,1749219032792,-500.0,0.00019176,2]
[364720452,1749219032801,-500.0,0.00019176,2]
[364720453,1749219032811,-500.0,0.00019176,2]
[364720454,1749219032820,-500.0,0.00019176,2]
[364720455,1749219032830,-500.0,0.00019176,2]
[364720456,1749219032839,-500.0,0.00019176,2]
[364720457,1749219032850,-500.0,0.00019176,2]
[364720458,1749219032860,-500.0,0.00019176,2]
[364720459,1749219032869,-500.0,0.00019176,2]
[364720460,1749219032880,-500.0,0.00019176,2]
[364720461,1749219032889,-328.34365071,0.00019176,2]
[364720462,1749219032899,-155.0,0.00019177,2]
[364720463,1749219032908,-300.0,0.00019177,2]
[364720464,1749219032918,-401.54003609,0.00019178,2]
[364720465,1749219032929,-192.25222457,0.00019178,2]
[364720466,1749219032939,-440.0,0.00019178,2]
[364720467,1749219032948,-440.0,0.00019178,2]
[364720468,1749219032958,-440.0,0.00019178,2]
[364720469,1749219032968,-440.0,0.00019178,2]
[364720470,1749219032978,-440.0,0.00019178,2]
[364720471,1749219032988,-440.0,0.00019178,2]
[364720472,1749219032997,-440.0,0.00019178,2]
[364720473,1749219033007,-440.0,0.00019178,2]
[364720474,1749219033017,-234.4739206,0.00019178,2]
[364720475,1749219033027,-430.0,0.00019178,2]
[364720476,1749219033038,-430.0,0.00019178,2]
[364720477,1749219033047,-500.0,0.00019178,2]
[364720478,1749219033058,-500.0,0.00019178,2]
[364720479,1749219033067,-500.0,0.00019178,2]
[364720480,1749219033079,-440.0,0.00019178,2]
[364720481,1749219033092,-436.56678842,0.00019178,2]
[364720482,1749219033102,-400.0,0.00019178,2]
[364720483,1749219033113,-440.0,0.00019178,2]
[364720484,1749219033123,-440.0,0.00019178,2]
[364720485,1749219033134,-430.0,0.00019178,2]
[364720486,1749219033143,-292.34601701,0.00019178,2]
[364720487,1749219033152,-440.0,0.00019178,2]
[364720488,1749219033162,-440.0,0.00019178,2]
[364720489,1749219033171,-440.0,0.00019178,2]
[364720490,1749219033181,-188.66820896,0.00019178,2]
[364720491,1749219033191,-440.0,0.00019178,2]
[364720492,1749219033200,-440.0,0.00019178,2]
[364720493,1749219033210,-440.0,0.00019178,2]
[364720494,1749219033219,-430.0,0.00019178,2]
[364720495,1749219033229,-430.0,0.00019178,2]
[364720496,1749219033239,-440.0,0.00019178,2]
[364720497,1749219033249,-440.0,0.00019178,2]
[364720498,1749219033258,-440.0,0.00019178,2]
[364720499,1749219033268,-430.0,0.00019178,2]
[364720500,1749219033278,-430.0,0.00019178,2]
[364720501,1749219033287,-440.0,0.00019178,2]
[364720502,1749219033297,-430.0,0.00019178,2]
[364720503,1749219033307,-440.0,0.00019178,2]
[364720504,1749219033317,-430.0,0.00019178,2]
[364720505,1749219033327,-540.08795904,0.00019178,2]
[364720506,1749219033336,-430.2739647,0.00019178,2]
[364720507,1749219033346,-440.0,0.00019178,2]
[364720508,1749219033356,-440.0,0.00019178,2]
[364720509,1749219033366,-440.0,0.00019178,2]
[364720510,1749219033377,-291.74770479,0.00019178,2]
[364720511,1749219033386,-500.0,0.00019178,2]
[364720512,1749219033396,-440.0,0.00019178,2]
[364720513,1749219033405,-440.0,0.00019178,2]
[364720514,1749219033415,-430.0,0.00019178,2]
[364720515,1749219033424,-430.0,0.00019178,2]
[364720516,1749219033434,-420.0,0.00019178,2]
[364720517,1749219033444,-430.0,0.00019178,2]
[364720518,1749219033454,-440.0,0.00019178,2]
[364720519,1749219033464,-430.0,0.00019178,2]
[364720520,1749219033473,-292.15703517,0.00019178,2]
[364720521,1749219033483,-430.0,0.00019178,2]
[364720522,1749219033492,-430.0,0.00019178,2]
[364720523,1749219033501,-386.95839099,0.00019178,2]
[364720524,1749219033510,-229.03047804,0.00019178,2]
[364720525,1749219033520,-440.0,0.00019178,2]
[364720526,1749219033529,-440.0,0.00019178,2]
[364720527,1749219033538,-440.0,0.00019178,2]
[364720528,1749219033548,-445.22036415,0.00019178,2]
[364720529,1749219033557,-430.0,0.00019178,2]
[364720530,1749219033567,-440.0,0.00019178,2]
[364720531,1749219033576,-430.0,0.00019178,2]
[364720532,1749219033585,-440.0,0.00019178,2]
[364720533,1749219033594,-488.43621285,0.00019178,2]
[364720534,1749219033604,-440.0,0.00019178,2]
[364720535,1749219033613,-474.55896577,0.00019178,2]
[364720536,1749219033623,-450.0,0.00019178,2]
[364720537,1749219033632,-440.0,0.00019178,2]
[364720538,1749219033642,-440.0,0.00019178,2]
[364720539,1749219033652,-412.36980136,0.00019178,2]
[364720540,1749219033661,-440.0,0.00019178,2]
[364720541,1749219033671,-430.0,0.00019178,2]
[364720542,1749219033681,-440.0,0.00019178,2]
[364720543,1749219033691,-440.0,0.00019178,2]
[364720544,1749219033700,-440.0,0.00019178,2]
[364720545,1749219033710,-440.0,0.00019178,2]
[364720546,1749219033719,-440.0,0.00019178,2]
[364720547,1749219033729,-440.0,0.00019178,2]
[364720548,1749219033739,-430.0,0.00019178,2]
[364720549,1749219033748,-440.0,0.00019178,2]
[364720550,1749219033758,-440.0,0.00019178,2]
[364720551,1749219033769,-440.0,0.00019178,2]
[364720552,1749219033782,-295.48207929,0.00019178,2]
[364720553,1749219033791,-500.0,0.00019178,2]
[364720554,1749219033801,-440.0,0.00019178,2]
[364720555,1749219033810,-440.0,0.00019178,2]
[364720556,1749219033820,-440.0,0.00019178,2]
[364720557,1749219033830,-430.0,0.00019178,2]
[364720558,1749219033840,-430.0,0.00019178,2]
[364720559,1749219033851,-430.0,0.00019178,2]
[364720560,1749219033862,-440.0,0.00019178,2]
[364720561,1749219033871,-440.0,0.00019178,2]
[364720562,1749219033882,-440.0,0.00019178,2]
[364720563,1749219033891,-440.0,0.00019178,2]
[364720564,1749219033901,-430.0,0.00019178,2]
[364720565,1749219033911,-430.0,0.00019178,2]
[364720566,1749219033920,-440.0,0.00019178,2]
[364720567,1749219033932,-440.0,0.00019178,2]
[364720568,1749219033942,-430.0,0.00019178,2]
[364720569,1749219033951,-440.0,0.00019178,2]
[364720570,1749219033961,-201.69857962,0.00019178,2]
[364720571,1749219033971,-430.0,0.00019178,2]
[364720572,1749219033981,-447.3754686,0.00019178,2]
[364720573,1749219033991,-440.0,0.00019178,2]
[364720574,1749219034001,-440.0,0.00019178,2]
[364720575,1749219034010,-440.0,0.00019178,2]
[364720576,1749219034020,-440.0,0.00019178,2]
[364720577,1749219034030,-280.0,0.00019178,2]
[364720578,1749219034039,-440.0,0.00019178,2]
[364720579,1749219034049,-440.0,0.00019178,2]
[364720580,1749219034059,-410.0,0.00019178,2]
[364720581,1749219034068,-440.0,0.00019178,2]
[364720582,1749219034078,-430.0,0.00019178,2]
[364720583,1749219034087,-430.0,0.00019178,2]
[364720584,1749219034097,-430.0,0.00019178,2]
[364720585,1749219034106,-430.0,0.00019178,2]
[364720586,1749219034115,-430.0,0.00019178,2]
[364720587,1749219034125,-430.0,0.00019178,2]
[364720588,1749219034135,-440.0,0.00019178,2]
[364720589,1749219034144,-440.0,0.00019178,2]
[364720590,1749219034154,-430.0,0.00019178,2]
[364720591,1749219034164,-440.0,0.00019178,2]
[364720592,1749219034174,-400.0,0.00019178,2]
[364720593,1749219034184,-440.0,0.00019178,2]
[364720594,1749219034194,-440.0,0.00019178,2]
[364720595,1749219034204,-400.0,0.00019178,2]
[364720596,1749219034213,-440.0,0.00019178,2]
[364720597,1749219034223,-430.0,0.00019178,2]
[364720598,1749219034232,-431.38406047,0.00019178,2]
[364720599,1749219034242,-430.0,0.00019178,2]
[364720600,1749219034251,-440.0,0.00019178,2]
[364720601,1749219034260,-440.0,0.00019178,2]
[364720602,1749219034270,-440.0,0.00019178,2]
[364720603,1749219034280,-430.0,0.00019178,2]
[364720604,1749219034289,-440.0,0.00019178,2]
[364720605,1749219034299,-430.0,0.00019178,2]
[364720606,1749219034309,-430.0,0.00019178,2]
[364720607,1749219034319,-440.0,0.00019178,2]
[364720608,1749219034329,-430.0,0.00019178,2]
[364720609,1749219034338,-440.0,0.00019178,2]
[364720610,1749219034348,-400.0,0.00019178,2]
[364720611,1749219034358,-440.0,0.00019178,2]
[364720612,1749219034367,-430.0,0.00019178,2]
[364720613,1749219034377,-440.0,0.00019178,2]
[364720614,1749219034387,-430.0,0.00019178,2]
[364720615,1749219034396,-293.36145177,0.00019178,2]
[364720616,1749219034406,-440.0,0.00019178,2]
[364720617,1749219034415,-420.0,0.00019178,2]
[364720618,1749219034425,-430.0,0.00019178,2]
[364720619,1749219034435,-517.41446567,0.00019178,2]
[364720620,1749219034445,-440.0,0.00019178,2]
[364720621,1749219034454,-440.0,0.00019178,2]
[364720622,1749219034464,-258.05192773,0.00019178,2]
[364720623,1749219034488,-181.94807227,0.00019178,2]
[364720624,1749219034498,-440.0,0.00019178,2]
[364720625,1749219034508,-430.0,0.00019178,2]
[364720626,1749219034518,-440.0,0.00019178,2]
[364720627,1749219034528,-440.0,0.00019178,2]
[364720628,1749219034538,-440.0,0.00019178,2]
[364720629,1749219034547,-430.0,0.00019178,2]
[364720630,1749219034557,-430.0,0.00019178,2]
[364720631,1749219034566,-430.0,0.00019178,2]
[364720632,1749219034575,-370.0,0.00019178,2]
[364720633,1749219034585,-430.0,0.00019178,2]
[364720634,1749219034595,-490.0,0.00019178,2]
[364720635,1749219034605,-150.77394187,0.00019178,2]
[364720636,1749219034614,-430.0,0.00019178,2]
[364720637,1749219034624,-222.62936294,0.00019178,2]
[364720638,1749219034634,-385.43449058,0.00019178,2]
[364720639,1749219034643,-353.32409051,0.00019178,2]
[364720640,1749219034653,-440.0,0.00019178,2]
[364720641,1749219034662,-430.0,0.00019178,2]
[364720642,1749219034672,-440.0,0.00019178,2]
[364720643,1749219034681,-440.0,0.00019178,2]
[364720644,1749219034690,-440.0,0.00019178,2]
[364720645,1749219034700,-310.0,0.00019178,2]
[364720646,1749219034709,-430.0,0.00019178,2]
[364720647,1749219034719,-430.0,0.00019178,2]
[364720648,1749219034728,-404.01737701,0.00019178,2]
[364720649,1749219034738,-430.0,0.00019178,2]
[364720650,1749219034748,-440.0,0.00019178,2]
[364720651,1749219034757,-415.5890807,0.00019178,2]
[364720652,1749219034768,-430.0,0.00019178,2]
[364720653,1749219034781,-430.0,0.00019178,2]
[364720654,1749219034791,-430.0,0.00019178,2]
[364720655,1749219034802,-430.0,0.00019178,2]
[364720656,1749219034812,-440.0,0.00019178,2]
[364720657,1749219034823,-440.0,0.00019178,2]
[364720658,1749219034833,-440.0,0.00019178,2]
[364720659,1749219034843,-440.0,0.00019178,2]
[364720660,1749219034854,-430.0,0.00019178,2]
[364720661,1749219034864,-334.40590533,0.00019178,2]
[364720662,1749219034874,-430.0,0.00019178,2]
[364720663,1749219034884,-430.0,0.00019178,2]
[364720664,1749219034893,-430.0,0.00019178,2]
[364720665,1749219034903,-430.0,0.00019178,2]
[364720666,1749219034912,-440.0,0.00019178,2]
[364720667,1749219034922,-430.0,0.00019178,2]
[364720668,1749219034932,-451.26202899,0.00019178,2]
[364720669,1749219034942,-430.0,0.00019178,2]
[364720670,1749219034951,-525.78520218,0.00019178,2]
[364720671,1749219034961,-430.0,0.00019178,2]
[364720672,1749219034971,-430.0,0.00019178,2]
[364720673,1749219034981,-114.65453329,0.00019178,2]
[364720694,1749219037761,-325.34546671,0.00019178,2]
[364720697,1749219037774,-440.0,0.00019178,2]
[364720699,1749219037784,-430.0,0.00019178,2]
[364720701,1749219037795,-203.6299719,0.00019178,2]
[364720702,1749219037807,-236.3700281,0.00019178,2]
[364720703,1749219037816,-340.0,0.00019178,2]
[364720704,1749219037826,-299.7642304,0.00019178,2]
[364720705,1749219037836,-430.0,0.00019178,2]
[364720706,1749219037845,-440.0,0.00019178,2]
[364720707,1749219037856,-430.0,0.00019178,2]
[364720708,1749219037865,-440.0,0.00019178,2]
[364720709,1749219037875,-414.11252389,0.00019178,2]
[364720710,1749219037885,-179.11155793,0.00019178,2]
[364720711,1749219037895,-440.0,0.00019178,2]
[364720712,1749219037905,-440.0,0.00019178,2]
[364720713,1749219037914,-463.98719117,0.00019178,2]
[364720714,1749219037924,-310.0,0.00019178,2]
[364720715,1749219037934,-340.0,0.00019178,2]
[364720716,1749219037944,-440.0,0.00019178,2]
[364720717,1749219037953,-440.0,0.00019178,2]
[364720718,1749219037963,-430.0,0.00019178,2]
[364720719,1749219037973,-766.8,0.00019178,2]
[364720720,1749219038097,-430.0,0.00019178,2]
[364720721,1749219038107,-440.0,0.00019178,2]
[364720722,1749219038117,-440.0,0.00019178,2]
[364720723,1749219038126,-430.0,0.00019178,2]
[364720724,1749219038136,-430.0,0.00019178,2]
[364720725,1749219038145,-430.0,0.00019178,2]
[364720726,1749219038155,-440.0,0.00019178,2]
[364720727,1749219038164,-420.0,0.00019178,2]
[364720728,1749219038174,-1435.5,0.00019178,2]
[364720729,1749219038183,-430.0,0.00019178,2]
[364720730,1749219038193,-440.0,0.00019178,2]
[364720731,1749219038202,-430.0,0.00019178,2]
[364720732,1749219038211,-440.0,0.00019178,2]
[364720733,1749219038220,-440.0,0.00019178,2]
[364720734,1749219038229,-440.0,0.00019178,2]
[364720735,1749219038238,-430.0,0.00019178,2]
[364720736,1749219038248,-658.06,0.00019178,2]
[364720737,1749219038257,-440.0,0.00019178,2]
[364720738,1749219038266,-439.74374302,0.00019178,2]
[364720739,1749219038276,-500.0,0.00019178,2]
[364720740,1749219038286,-473.69482944,0.00019178,2]
[364720741,1749219038295,-440.0,0.00019178,2]
[364720743,1749219038304,-440.0,0.00019178,2]
[364720745,1749219038313,-440.0,0.00019178,2]
[364720747,1749219038323,-430.0,0.00019178,2]
[364720748,1749219038332,-440.0,0.00019178,2]
[364720749,1749219038341,-440.0,0.00019178,2]
[364720750,1749219038350,-440.0,0.00019178,2]
[364720751,1749219038359,-440.0,0.00019178,2]
[364720752,1749219038368,-270.0,0.00019178,2]
[364720753,1749219038377,-440.0,0.00019178,2]
[364720754,1749219038386,-430.0,0.00019178,2]
[364720755,1749219038395,-440.0,0.00019178,2]
[364720756,1749219038405,-440.0,0.00019178,2]
[364720757,1749219038414,-440.0,0.00019178,2]
[364720758,1749219038423,-1365.21,0.00019178,2]
[364720759,1749219038432,-440.0,0.00019178,2]
[364720760,1749219038442,-430.0,0.00019178,2]
[364720761,1749219038451,-440.0,0.00019178,2]
[364720762,1749219038460,-440.0,0.00019178,2]
[364720763,1749219038470,-440.0,0.00019178,2]
[364720764,1749219038479,-440.0,0.00019178,2]
[364720765,1749219038489,-439.2211437,0.00019178,2]
[364720766,1749219038498,-431.24931753,0.00019178,2]
[364720767,1749219038508,-440.0,0.00019178,2]
[364720768,1749219038518,-440.0,0.00019178,2]
[364720769,1749219038528,-354.67245438,0.00019178,2]
[364720770,1749219038557,-85.32754562,0.00019178,2]
[364720771,1749219038566,-440.0,0.00019178,2]
[364720772,1749219038576,-303.91061213,0.00019178,2]
[364720773,1749219038587,-147.06172062,0.00019178,2]
[364720774,1749219038596,-254.23982768,0.00019178,2]
[364720775,1749219038607,-185.76017232,0.00019178,2]
[364720776,1749219038617,-440.0,0.00019178,2]
[364720777,1749219038626,-354.51814559,0.00019178,2]
[364720778,1749219038639,-85.48185441,0.00019178,2]
[364720779,1749219038650,-440.0,0.00019178,2]
[364720780,1749219038661,-430.0,0.00019178,2]
[364720781,1749219038673,-430.0,0.00019178,2]
[364720782,1749219038686,-430.0,0.00019178,2]
[364720783,1749219038699,-430.0,0.00019178,2]
[364720784,1749219038708,-440.0,0.00019178,2]
[364720785,1749219038718,-430.0,0.00019178,2]
[364720786,1749219038727,-440.0,0.00019178,2]
[364720787,1749219038737,-430.0,0.00019178,2]
[364720788,1749219038746,-14.49972948,0.00019178,2]
[364720789,1749219038762,-415.50027052,0.00019178,2]
[364720790,1749219038774,-430.0,0.00019178,2]
[364720791,1749219038784,-430.0,0.00019178,2]
[364720792,1749219038794,-200.09972868,0.00019178,2]
[364720802,1749219040103,-2362.65157086,0.00019166,2]
[364720809,1749219040162,-400.0,0.00019166,2]
[364720811,1749219040175,-711.10893653,0.00019166,2]
[364720813,1749219040187,-4779.93533288,0.00019166,2]
[364720908,1749219045949,-1263.19276571,0.00019166,2]
[364720909,1749219069413,205.72949772,0.00018603,2]
[364720910,1749219103571,150.0,0.00018212,2]
[364720911,1749219126934,344.629005,0.00018174,2]
[364720912,1749219143242,204.2136669,0.00018979,2]
[364720913,1749219175474,150.0,0.00018194,2]
[364720920,1749219196254,600.19011786,0.000189,2]
[364720927,1749219249392,150.0,0.00018145,2]
[364720928,1749219300225,400.12674524,0.000189,2]
[364720929,1749219322349,150.0,0.00018157,2]
[364720930,1749219355135,440.0,0.00024658,120]
[364720931,1749219393317,150.0,0.00018186,2]
[364720932,1749219418984,15304.70733357,0.00018166,2]
[364720933,1749219419008,9595.29266643,0.00018166,2]
[364720934,1749219462722,150.0,0.00018162,2]
[364720935,1749219497497,266.75116349,0.000189,2]
[364720936,1749219532973,150.0,0.00018161,2]
[364720937,1749219583773,173.7426987,0.00018151,2]
[364720938,1749219601450,177.83410899,0.000189,2]
[364720949,1749219636015,150.0,0.00018186,2]
[364720951,1749219705079,150.0,0.00018186,2]
[364720952,1749219761722,500.0,0.00018147,2]
[364720953,1749219775448,150.0,0.0001812,2]
[364720954,1749219798815,150.0,0.000189,2]